[Event "European Online Club-ch-D 2021"]
[Site "Online"]
[Date "2021.03.27"]
[Round "7.8"]
[White "Gavrilescu, David"]
[Black "Eynullayev, Atilla"]
[Result "1-0"]
[ECO "B51"]
[WhiteElo "2476"]
[BlackElo "2347"]
[Annotator "ChessBase"]
[PlyCount "61"]
[EventDate "2021.03.27"]
[EventType "team-tourn"]
[EventCountry "NET"]
[SourceTitle "playchess.com"]
[Source "ChessBase"]
[SourceQuality "1"]
[TimeControl "900+5"]

1. e4 {[%emt 0:00:00]} c5 {[%emt 0:00:02]} 2. Nf3 {[%emt 0:00:02]} d6 {[%emt 0:00:01]} 3. Bb5+ {[%emt 0:00:01]} Nd7 {[%emt 0:00:02]} 4. c3 {[%emt 0:00:02]} Ngf6 {[%emt 0:00:17]} 5. Bd3 {[%emt 0:00:01]} a6 {[%emt 0:00:09]} 6. Bc2 {[%emt 0:00:05]} b5 {[%emt 0:00:48]} 7. d4 {[%emt 0:00:03]} e5 {[%emt 0:00:49]} 8. a4 {[%emt 0:00:04]} Rb8 {[%emt 0:00:31]} 9. O-O {[%emt 0:00:13]} g6 {[%emt 0:00:28]} 10. Qe2 {[%emt 0:01:26]} Bg7 {[%emt 0:00:41]} 11. Na3 {[%emt 0:00:15]} c4 {[%emt 0:01:30]} 12. axb5 {[%emt 0:00:21]} axb5 {[%emt 0:00:03]} 13. b3 {[%emt 0:00:02]} cxb3 {[%emt 0:02:00]} 14. Bxb3 {[%emt 0:00:02]} b4 {[%emt 0:01:29]} 15. Nc4 {[%emt 0:00:46]} O-O {[%emt 0:00:21]} 16. Nxd6 {[%emt 0:00:32]} bxc3 {[%emt 0:00:53]} 17. Bxf7+ {[%emt 0:00:33]} Kh8 {[%emt 0:00:19]} 18. dxe5 {[%emt 0:00:20]} Nxe5 {[%emt 0:00:39]} 19. Nxe5 {[%emt 0:00:33]} Qxd6 {[%emt 0:00:08]} 20. Bf4 {[%emt 0:00:01]} Rb2 {[%emt 0:00:28]} 21. Qc4 {[%emt 0:04:30]} Qb4 {[%emt 0:00:25]} 22. Ra8 {[%emt 0:00:06]} Qxc4 {[%emt 0:01:37]} 23. Bxc4 {[%emt 0:01:19]} Rb4 {[%emt 0:01:39]} 24. Ba2 {[%emt 0:02:48]} Bb7 {[%emt 0:00:56]} 25. Nf7+ {[%emt 0:00:42]} Kg8 {[%emt 0:00:04]} 26. Nd6+ {[%emt 0:00:01]} Kh8 {[%emt 0:00:04]} 27. Rxf8+ {[%emt 0:00:09]} Bxf8 {[%emt 0:00:04]} 28. Be5 {[%emt 0:00:02]} Bg7 {[%emt 0:00:43]} 29. Bxc3 {[%emt 0:00:02]} Rb6 {[%emt 0:00:02]} 30. Nf7+ {[%emt 0:00:57]} Kg8 {[%emt 0:00:01]} 31. Rd1 {[%emt 0:00:13]} 1-0

[Event "European Online Club-ch-D 2021"]
[Site "Online"]
[Date "2021.03.27"]
[Round "7.10"]
[White "Lagarde, Maxime"]
[Black "Roubalik, Jakub"]
[Result "1-0"]
[ECO "B23"]
[WhiteElo "2640"]
[BlackElo "2391"]
[Annotator "ChessBase"]
[PlyCount "61"]
[EventDate "2021.03.27"]
[EventType "team-tourn"]
[EventCountry "NET"]
[SourceTitle "playchess.com"]
[Source "ChessBase"]
[SourceQuality "1"]
[TimeControl "900+5"]

1. e4 {[%emt 0:00:00]} c5 {[%emt 0:00:06]} 2. Nc3 {[%emt 0:00:03]} Nc6 {[%emt 0:00:03]} 3. Bb5 {[%emt 0:00:02]} e6 {[%emt 0:00:24]} 4. Bxc6 {[%emt 0:00:03]} bxc6 {[%emt 0:00:02]} 5. d3 {[%emt 0:00:01]} d6 {[%emt 0:00:04]} 6. f4 {[%emt 0:00:07]} Qh4+ {[%emt 0:01:04]} 7. g3 {[%emt 0:00:12]} Qd8 {[%emt 0:00:02]} 8. Nf3 {[%emt 0:00:06]} h5 {[%emt 0:00:29]} 9. h3 {[%emt 0:00:34]} Be7 {[%emt 0:00:28]} 10. Qe2 {[%emt 0:00:30]} Rb8 {[%emt 0:00:35]} 11. b3 {[%emt 0:00:25]} Nf6 {[%emt 0:00:20]} 12. Na4 {[%emt 0:00:38]} c4 {[%emt 0:01:03]} 13. dxc4 {[%emt 0:01:02]} d5 {[%emt 0:00:03]} 14. Ng5 {[%emt 0:00:40]} Ba6 {[%emt 0:00:58]} 15. Be3 {[%emt 0:01:38]} Bxc4 {[%emt 0:02:50]} 16. Qd2 {[%emt 0:01:41]} Bb5 {[%emt 0:00:51]} 17. Nc5 {[%emt 0:00:09]} Nd7 {[%emt 0:00:45]} 18. Ncxe6 {[%emt 0:01:07]} fxe6 {[%emt 0:00:04]} 19. Nxe6 {[%emt 0:00:00]} Qc8 {[%emt 0:00:01]} 20. Nxg7+ {[%emt 0:00:22]} Kf7 {[%emt 0:00:03]} 21. Nf5 {[%emt 0:00:01]} Nf6 {[%emt 0:00:07]} 22. Nxe7 {[%emt 0:00:03]} Kxe7 {[%emt 0:00:08]} 23. exd5 {[%emt 0:00:13]} cxd5 {[%emt 0:01:04]} 24. O-O-O {[%emt 0:00:09]} Qf5 {[%emt 0:01:59]} 25. Bd4 {[%emt 0:01:10]} Ne4 {[%emt 0:00:06]} 26. Qb4+ {[%emt 0:00:12]} Nd6 {[%emt 0:00:55]} 27. Rhe1+ {[%emt 0:00:09]} Kd7 {[%emt 0:00:07]} 28. Bxh8 {[%emt 0:00:04]} Rxh8 {[%emt 0:02:11]} 29. Re5 {[%emt 0:00:07]} Qf6 {[%emt 0:00:02]} 30. Rexd5 {[%emt 0:00:24]} Qa1+ {[%emt 0:00:02]} 31. Kd2 {[%emt 0:00:02]} 1-0

[Event "European Online Club-ch-D 2021"]
[Site "Online"]
[Date "2021.03.27"]
[Round "7.11"]
[White "Vymazal, Bronislav"]
[Black "Medvegy, Zoltan"]
[Result "1/2-1/2"]
[ECO "B29"]
[WhiteElo "2350"]
[BlackElo "2527"]
[Annotator "ChessBase"]
[PlyCount "90"]
[EventDate "2021.03.27"]
[EventType "team-tourn"]
[EventCountry "NET"]
[SourceTitle "playchess.com"]
[Source "ChessBase"]
[SourceQuality "1"]
[TimeControl "900+5"]

1. e4 {[%emt 0:00:00]} c5 {[%emt 0:00:04]} 2. Nf3 {[%emt 0:00:03]} Nf6 {[%emt 0:00:03]} 3. e5 {[%emt 0:00:39]} Nd5 {[%emt 0:00:03]} 4. Nc3 {[%emt 0:00:01]} Nxc3 {[%emt 0:00:02]} 5. dxc3 {[%emt 0:00:02]} Nc6 {[%emt 0:00:05]} 6. Bf4 {[%emt 0:00:26]} Qc7 {[%emt 0:00:04]} 7. Qd2 {[%emt 0:00:07]} e6 {[%emt 0:00:06]} 8. O-O-O {[%emt 0:00:19]} h6 {[%emt 0:00:04]} 9. h4 {[%emt 0:00:04]} a6 {[%emt 0:00:16]} 10. h5 {[%emt 0:04:19]} b5 {[%emt 0:00:07]} 11. Rh3 {[%emt 0:00:06]} Bb7 {[%emt 0:00:10]} 12. Rg3 {[%emt 0:00:03]} c4 {[%emt 0:01:45]} 13. Qe1 {[%emt 0:01:07]} Ne7 {[%emt 0:00:57]} 14. Nd4 {[%emt 0:00:06]} Nd5 {[%emt 0:00:04]} 15. Bd2 {[%emt 0:00:14]} O-O-O {[%emt 0:01:22]} 16. f4 {[%emt 0:00:34]} d6 {[%emt 0:00:46]} 17. Rg4 {[%emt 0:00:52]} Rg8 {[%emt 0:02:09]} 18. g3 {[%emt 0:00:22]} Kb8 {[%emt 0:00:45]} 19. Qe2 {[%emt 0:00:04]} b4 {[%emt 0:01:16]} 20. Qe1 {[%emt 0:03:04]} bxc3 {[%emt 0:01:17]} 21. Bxc3 {[%emt 0:00:02]} dxe5 {[%emt 0:00:43]} 22. fxe5 {[%emt 0:00:04]} Be7 {[%emt 0:00:09]} 23. Ba5 {[%emt 0:00:14]} Qc5 {[%emt 0:01:55]} 24. Bxd8 {[%emt 0:00:06]} Bxd8 {[%emt 0:00:01]} 25. c3 {[%emt 0:00:46]} Bg5+ {[%emt 0:00:07]} 26. Rxg5 {[%emt 0:00:28]} hxg5 {[%emt 0:00:01]} 27. Qd2 {[%emt 0:00:36]} g4 {[%emt 0:00:41]} 28. Qg5 {[%emt 0:00:25]} Nxc3 {[%emt 0:00:58]} 29. bxc3 {[%emt 0:00:09]} Qa3+ {[%emt 0:00:02]} 30. Kd2 {[%emt 0:00:17]} Qb2+ {[%emt 0:00:16]} 31. Ke1 {[%emt 0:00:46]} Qxc3+ {[%emt 0:00:03]} 32. Kf2 {[%emt 0:00:05]} Qb2+ {[%emt 0:01:10]} 33. Qd2 {[%emt 0:00:14]} Qb6 {[%emt 0:00:05]} 34. Bg2 {[%emt 0:00:48]} Rd8 {[%emt 0:00:05]} 35. Bxb7 {[%emt 0:00:05]} Kxb7 {[%emt 0:00:02]} 36. Qe3 {[%emt 0:00:04]} Rd5 {[%emt 0:00:06]} 37. Rd2 {[%emt 0:00:11]} a5 {[%emt 0:00:08]} 38. Ke2 {[%emt 0:00:09]} Ka6 {[%emt 0:00:03]} 39. Nc2 {[%emt 0:00:03]} Qb5 {[%emt 0:00:07]} 40. Rxd5 {[%emt 0:00:04]} Qxd5 {[%emt 0:00:01]} 41. Nd4 {[%emt 0:00:06]} Qg2+ {[%emt 0:00:02]} 42. Qf2 {[%emt 0:00:02]} Qe4+ {[%emt 0:00:02]} 43. Qe3 {[%emt 0:00:03]} Qg2+ {[%emt 0:00:01]} 44. Qf2 {[%emt 0:00:08]} Qe4+ {[%emt 0:00:02]} 45. Qe3 {[%emt 0:00:10]} Qg2+ {[%emt 0:00:11]} 1/2-1/2

[Event "European Online Club-ch-D 2021"]
[Site "Online"]
[Date "2021.03.27"]
[Round "7.12"]
[White "Guliyev, Namig"]
[Black "Sluka, Radek"]
[Result "1-0"]
[ECO "B51"]
[WhiteElo "2538"]
[BlackElo "2324"]
[Annotator "ChessBase"]
[PlyCount "89"]
[EventDate "2021.03.27"]
[EventType "team-tourn"]
[EventCountry "NET"]
[SourceTitle "playchess.com"]
[Source "ChessBase"]
[SourceQuality "1"]
[TimeControl "900+5"]

1. e4 {[%emt 0:00:00]} c5 {[%emt 0:00:06]} 2. Nf3 {[%emt 0:00:03]} d6 {[%emt 0:00:08]} 3. Bb5+ {[%emt 0:00:02]} Nd7 {[%emt 0:00:07]} 4. d4 {[%emt 0:00:03]} cxd4 {[%emt 0:00:06]} 5. Qxd4 {[%emt 0:00:02]} e5 {[%emt 0:00:07]} 6. Qd3 {[%emt 0:00:09]} a6 {[%emt 0:00:05]} 7. Bxd7+ {[%emt 0:00:02]} Bxd7 {[%emt 0:00:12]} 8. c4 {[%emt 0:00:09]} h6 {[%emt 0:00:28]} 9. Nc3 {[%emt 0:00:03]} Rc8 {[%emt 0:00:11]} 10. O-O {[%emt 0:00:15]} Nf6 {[%emt 0:00:36]} 11. b3 {[%emt 0:00:23]} g5 {[%emt 0:00:04]} 12. Rd1 {[%emt 0:00:27]} g4 {[%emt 0:00:55]} 13. Nh4 {[%emt 0:01:22]} Qa5 {[%emt 0:00:57]} 14. Bd2 {[%emt 0:01:26]} Qc7 {[%emt 0:00:43]} 15. a4 {[%emt 0:00:10]} Be7 {[%emt 0:00:31]} 16. a5 {[%emt 0:00:16]} Rd8 {[%emt 0:00:35]} 17. Be3 {[%emt 0:00:09]} Qc6 {[%emt 0:00:22]} 18. Rac1 {[%emt 0:01:40]} Be6 {[%emt 0:01:26]} 19. Bb6 {[%emt 0:00:30]} Rd7 {[%emt 0:01:11]} 20. Nd5 {[%emt 0:00:14]} Nxe4 {[%emt 0:01:23]} 21. Ng6 {[%emt 0:02:44]} fxg6 {[%emt 0:00:36]} 22. Qxe4 {[%emt 0:00:03]} Bf5 {[%emt 0:00:02]} 23. Qe2 {[%emt 0:00:01]} Bg5 {[%emt 0:00:32]} 24. Be3 {[%emt 0:00:03]} Bd8 {[%emt 0:01:37]} 25. b4 {[%emt 0:00:05]} g5 {[%emt 0:01:31]} 26. b5 {[%emt 0:01:26]} Qc8 {[%emt 0:00:04]} 27. bxa6 {[%emt 0:00:23]} bxa6 {[%emt 0:00:05]} 28. c5 {[%emt 0:00:02]} O-O {[%emt 0:00:40]} 29. cxd6 {[%emt 0:00:14]} Qa8 {[%emt 0:00:11]} 30. Ne7+ {[%emt 0:00:49]} Bxe7 {[%emt 0:00:54]} 31. dxe7 {[%emt 0:00:03]} Rxd1+ {[%emt 0:00:14]} 32. Rxd1 {[%emt 0:00:23]} Re8 {[%emt 0:00:02]} 33. Bc5 {[%emt 0:00:11]} Qe4 {[%emt 0:00:31]} 34. Qxe4 {[%emt 0:00:49]} Bxe4 {[%emt 0:00:02]} 35. Re1 {[%emt 0:00:35]} Bd3 {[%emt 0:00:31]} 36. Rxe5 {[%emt 0:00:03]} Kf7 {[%emt 0:00:02]} 37. h3 {[%emt 0:00:02]} gxh3 {[%emt 0:00:02]} 38. gxh3 {[%emt 0:00:01]} Bb5 {[%emt 0:00:02]} 39. Rf5+ {[%emt 0:00:05]} Ke6 {[%emt 0:00:06]} 40. Rf8 {[%emt 0:00:03]} Kd5 {[%emt 0:00:14]} 41. Ba3 {[%emt 0:00:02]} Ke6 {[%emt 0:00:03]} 42. h4 {[%emt 0:00:09]} gxh4 {[%emt 0:00:05]} 43. f4 {[%emt 0:00:03]} Bd7 {[%emt 0:00:09]} 44. f5+ {[%emt 0:00:04]} Ke5 {[%emt 0:00:05]} 45. f6 {[%emt 0:00:02]} 1-0

[Event "European Online Club-ch-D 2021"]
[Site "Online"]
[Date "2021.03.27"]
[Round "7.14"]
[White "Howell, David W L"]
[Black "Nandhidhaa, P V"]
[Result "1-0"]
[ECO "A14"]
[WhiteElo "2658"]
[BlackElo "2365"]
[Annotator "ChessBase"]
[PlyCount "93"]
[EventDate "2021.03.27"]
[EventType "team-tourn"]
[EventCountry "NET"]
[SourceTitle "playchess.com"]
[Source "ChessBase"]
[SourceQuality "1"]
[TimeControl "900+5"]

1. e3 {[%emt 0:00:00]} d5 {[%emt 0:00:15]} 2. Nf3 {[%emt 0:00:18]} Nf6 {[%emt 0:00:03]} 3. c4 {[%emt 0:00:03]} e6 {[%emt 0:00:04]} 4. Nc3 {[%emt 0:00:13]} b6 {[%emt 0:00:05]} 5. b3 {[%emt 0:00:02]} Bb7 {[%emt 0:00:04]} 6. Bb2 {[%emt 0:00:02]} Be7 {[%emt 0:00:16]} 7. g3 {[%emt 0:00:47]} dxc4 {[%emt 0:00:34]} 8. bxc4 {[%emt 0:00:03]} c5 {[%emt 0:00:07]} 9. Bg2 {[%emt 0:00:05]} O-O {[%emt 0:00:04]} 10. O-O {[%emt 0:00:05]} Nc6 {[%emt 0:00:57]} 11. Qe2 {[%emt 0:00:04]} Nb4 {[%emt 0:01:45]} 12. d4 {[%emt 0:02:09]} cxd4 {[%emt 0:00:48]} 13. exd4 {[%emt 0:00:03]} Rc8 {[%emt 0:00:22]} 14. Rfd1 {[%emt 0:01:17]} Re8 {[%emt 0:02:23]} 15. Rac1 {[%emt 0:00:12]} Bf8 {[%emt 0:00:32]} 16. Qf1 {[%emt 0:03:59]} Ne4 {[%emt 0:01:03]} 17. a3 {[%emt 0:00:29]} Nxc3 {[%emt 0:00:12]} 18. Rxc3 {[%emt 0:00:01]} Nc6 {[%emt 0:00:24]} 19. d5 {[%emt 0:00:04]} exd5 {[%emt 0:00:09]} 20. cxd5 {[%emt 0:00:01]} Na5 {[%emt 0:00:21]} 21. Qd3 {[%emt 0:00:41]} Rxc3 {[%emt 0:01:01]} 22. Bxc3 {[%emt 0:00:43]} Nb3 {[%emt 0:00:42]} 23. Ne5 {[%emt 0:00:31]} Nc5 {[%emt 0:00:32]} 24. Qc2 {[%emt 0:00:24]} Qc7 {[%emt 0:01:25]} 25. Nc6 {[%emt 0:00:22]} a6 {[%emt 0:00:49]} 26. h4 {[%emt 0:00:25]} h6 {[%emt 0:00:05]} 27. a4 {[%emt 0:00:15]} Qd6 {[%emt 0:00:40]} 28. Rb1 {[%emt 0:00:17]} Qc7 {[%emt 0:00:26]} 29. Bd4 {[%emt 0:01:27]} a5 {[%emt 0:00:22]} 30. Bf3 {[%emt 0:00:03]} Ba6 {[%emt 0:00:12]} 31. Rd1 {[%emt 0:00:01]} Nb7 {[%emt 0:00:32]} 32. Kg2 {[%emt 0:00:20]} Nc5 {[%emt 0:00:12]} 33. h5 {[%emt 0:00:05]} Nb7 {[%emt 0:00:02]} 34. Qf5 {[%emt 0:00:37]} Nd6 {[%emt 0:00:05]} 35. Qf4 {[%emt 0:00:10]} Be2 {[%emt 0:00:03]} 36. Rb1 {[%emt 0:00:21]} Bxf3+ {[%emt 0:00:04]} 37. Qxf3 {[%emt 0:00:01]} Nc4 {[%emt 0:00:05]} 38. Qd3 {[%emt 0:00:10]} Na3 {[%emt 0:00:11]} 39. Rxb6 {[%emt 0:00:06]} Qd6 {[%emt 0:00:06]} 40. Be3 {[%emt 0:00:14]} Qf6 {[%emt 0:00:09]} 41. Nxa5 {[%emt 0:00:20]} Qd8 {[%emt 0:00:06]} 42. Nc6 {[%emt 0:00:22]} Qc7 {[%emt 0:00:04]} 43. a5 {[%emt 0:00:04]} Rxe3 {[%emt 0:00:06]} 44. fxe3 {[%emt 0:00:06]} Qd6 {[%emt 0:00:07]} 45. a6 {[%emt 0:00:06]} Qd7 {[%emt 0:00:06]} 46. a7 {[%emt 0:00:02]} Qg4 {[%emt 0:00:03]} 47. a8=Q {[%emt 0:00:06]} 1-0

[Event "European Online Club-ch-D 2021"]
[Site "Online"]
[Date "2021.03.27"]
[Round "7.15"]
[White "Dauletova, Gulmira"]
[Black "Jones, Gawain C B"]
[Result "0-1"]
[ECO "C76"]
[WhiteElo "2285"]
[BlackElo "2670"]
[Annotator "ChessBase"]
[PlyCount "110"]
[EventDate "2021.03.27"]
[EventType "team-tourn"]
[EventCountry "NET"]
[SourceTitle "playchess.com"]
[Source "ChessBase"]
[SourceQuality "1"]
[TimeControl "900+5"]

1. e4 {[%emt 0:00:00]} e5 {[%emt 0:00:13]} 2. Nf3 {[%emt 0:00:03]} Nc6 {[%emt 0:00:11]} 3. Bb5 {[%emt 0:00:03]} a6 {[%emt 0:00:02]} 4. Ba4 {[%emt 0:00:02]} d6 {[%emt 0:00:01]} 5. c3 {[%emt 0:00:19]} g6 {[%emt 0:00:17]} 6. d4 {[%emt 0:01:10]} Bd7 {[%emt 0:00:03]} 7. O-O {[%emt 0:00:41]} Bg7 {[%emt 0:00:03]} 8. d5 {[%emt 0:01:04]} Nce7 {[%emt 0:00:06]} 9. c4 {[%emt 0:00:08]} b5 {[%emt 0:00:10]} 10. Bb3 {[%emt 0:01:02]} Nf6 {[%emt 0:00:19]} 11. Re1 {[%emt 0:00:18]} O-O {[%emt 0:01:01]} 12. a4 {[%emt 0:00:41]} Nh5 {[%emt 0:00:29]} 13. axb5 {[%emt 0:02:33]} axb5 {[%emt 0:00:04]} 14. Rxa8 {[%emt 0:00:02]} Qxa8 {[%emt 0:00:00]} 15. cxb5 {[%emt 0:00:37]} Bxb5 {[%emt 0:00:03]} 16. Nc3 {[%emt 0:00:02]} Ba6 {[%emt 0:00:13]} 17. Bg5 {[%emt 0:00:54]} Bf6 {[%emt 0:00:27]} 18. Be3 {[%emt 0:02:28]} Rb8 {[%emt 0:00:07]} 19. Nd2 {[%emt 0:00:12]} Nf4 {[%emt 0:00:17]} 20. Bxf4 {[%emt 0:01:01]} exf4 {[%emt 0:00:03]} 21. Qc2 {[%emt 0:00:04]} Bc8 {[%emt 0:01:23]} 22. Na4 {[%emt 0:00:53]} Qa5 {[%emt 0:00:50]} 23. Rd1 {[%emt 0:00:10]} Bg4 {[%emt 0:00:24]} 24. f3 {[%emt 0:00:03]} Bd7 {[%emt 0:00:07]} 25. Nc3 {[%emt 0:00:25]} h5 {[%emt 0:00:28]} 26. Kh1 {[%emt 0:00:21]} g5 {[%emt 0:02:11]} 27. e5 {[%emt 0:00:22]} Bxe5 {[%emt 0:00:23]} 28. Nc4 {[%emt 0:00:06]} Qb4 {[%emt 0:00:07]} 29. Nxe5 {[%emt 0:00:15]} Bf5 {[%emt 0:01:37]} 30. Ne4 {[%emt 0:00:48]} Bxe4 {[%emt 0:00:52]} 31. fxe4 {[%emt 0:00:31]} Qxb3 {[%emt 0:00:08]} 32. Qxb3 {[%emt 0:00:05]} Rxb3 {[%emt 0:00:00]} 33. Nc4 {[%emt 0:00:03]} f5 {[%emt 0:00:24]} 34. Re1 {[%emt 0:00:18]} fxe4 {[%emt 0:00:06]} 35. Rxe4 {[%emt 0:00:02]} Nxd5 {[%emt 0:00:01]} 36. h4 {[%emt 0:00:02]} g4 {[%emt 0:00:56]} 37. Rd4 {[%emt 0:00:02]} c6 {[%emt 0:00:04]} 38. Kg1 {[%emt 0:00:15]} Rb4 {[%emt 0:00:04]} 39. Kf2 {[%emt 0:00:03]} Nb6 {[%emt 0:00:03]} 40. b3 {[%emt 0:00:03]} d5 {[%emt 0:00:04]} 41. Rxf4 {[%emt 0:00:03]} dxc4 {[%emt 0:00:01]} 42. bxc4 {[%emt 0:00:01]} Nxc4 {[%emt 0:00:07]} 43. Rf5 {[%emt 0:00:08]} Rb2+ {[%emt 0:00:05]} 44. Ke1 {[%emt 0:00:09]} Rxg2 {[%emt 0:00:08]} 45. Rxh5 {[%emt 0:00:02]} Kf7 {[%emt 0:00:11]} 46. Rc5 {[%emt 0:00:02]} Rc2 {[%emt 0:00:17]} 47. Rxc6 {[%emt 0:00:03]} g3 {[%emt 0:00:03]} 48. Rc7+ {[%emt 0:00:16]} Kf6 {[%emt 0:00:10]} 49. Rc6+ {[%emt 0:00:03]} Kf5 {[%emt 0:00:02]} 50. Rc5+ {[%emt 0:00:01]} Kg4 {[%emt 0:00:03]} 51. Rg5+ {[%emt 0:00:03]} Kxh4 {[%emt 0:00:02]} 52. Rg8 {[%emt 0:00:03]} Ne5 {[%emt 0:00:26]} 53. Kf1 {[%emt 0:00:04]} Rf2+ {[%emt 0:00:03]} 54. Ke1 {[%emt 0:00:07]} Nf3+ {[%emt 0:00:01]} 55. Kd1 {[%emt 0:00:01]} g2 {[%emt 0:00:02]} 0-1

[Event "European Online Club-ch-D 2021"]
[Site "Online"]
[Date "2021.03.27"]
[Round "7.16"]
[White "Cheparinov, Ivan"]
[Black "Muminova, Nafisa"]
[Result "1-0"]
[ECO "E15"]
[WhiteElo "2667"]
[BlackElo "2274"]
[Annotator "ChessBase"]
[PlyCount "75"]
[EventDate "2021.03.27"]
[EventType "team-tourn"]
[EventCountry "NET"]
[SourceTitle "playchess.com"]
[Source "ChessBase"]
[SourceQuality "1"]
[TimeControl "900+5"]

1. d4 {[%emt 0:00:00]} e6 {[%emt 0:00:12]} 2. Nf3 {[%emt 0:00:07]} Nf6 {[%emt 0:00:18]} 3. c4 {[%emt 0:00:02]} b6 {[%emt 0:00:02]} 4. g3 {[%emt 0:00:02]} Ba6 {[%emt 0:00:13]} 5. b3 {[%emt 0:00:03]} Be7 {[%emt 0:00:17]} 6. Nc3 {[%emt 0:00:29]} d5 {[%emt 0:00:06]} 7. cxd5 {[%emt 0:00:12]} exd5 {[%emt 0:00:04]} 8. Bg2 {[%emt 0:00:02]} O-O {[%emt 0:00:05]} 9. O-O {[%emt 0:00:01]} Re8 {[%emt 0:00:09]} 10. Bb2 {[%emt 0:00:02]} Bb4 {[%emt 0:00:05]} 11. Ne5 {[%emt 0:00:19]} Qd6 {[%emt 0:03:06]} 12. a3 {[%emt 0:01:14]} Bxc3 {[%emt 0:00:10]} 13. Bxc3 {[%emt 0:00:01]} Ne4 {[%emt 0:00:21]} 14. Bb2 {[%emt 0:00:21]} f6 {[%emt 0:01:53]} 15. Nd3 {[%emt 0:00:03]} Nd7 {[%emt 0:00:21]} 16. Rc1 {[%emt 0:00:04]} Nf8 {[%emt 0:01:49]} 17. Qc2 {[%emt 0:01:46]} Re7 {[%emt 0:01:47]} 18. Rfd1 {[%emt 0:00:20]} Rae8 {[%emt 0:00:17]} 19. e3 {[%emt 0:00:08]} Bb7 {[%emt 0:00:22]} 20. a4 {[%emt 0:00:40]} h5 {[%emt 0:00:07]} 21. Ra1 {[%emt 0:00:14]} Rf7 {[%emt 0:00:25]} 22. Ba3 {[%emt 0:00:06]} Qd7 {[%emt 0:00:02]} 23. Rac1 {[%emt 0:00:54]} h4 {[%emt 0:00:12]} 24. Qe2 {[%emt 0:00:07]} hxg3 {[%emt 0:00:16]} 25. hxg3 {[%emt 0:00:03]} Nh7 {[%emt 0:00:04]} 26. Qh5 {[%emt 0:00:13]} Nhg5 {[%emt 0:00:21]} 27. Nf4 {[%emt 0:00:17]} g6 {[%emt 0:00:41]} 28. Qxg6+ {[%emt 0:00:11]} Rg7 {[%emt 0:00:03]} 29. Rxc7 {[%emt 0:00:16]} Qxc7 {[%emt 0:01:09]} 30. Qxe8+ {[%emt 0:00:03]} Kh7 {[%emt 0:00:02]} 31. Rc1 {[%emt 0:00:24]} Qd7 {[%emt 0:00:22]} 32. Qxd7 {[%emt 0:00:11]} Rxd7 {[%emt 0:00:02]} 33. Bf1 {[%emt 0:00:34]} Nf3+ {[%emt 0:00:33]} 34. Kg2 {[%emt 0:00:03]} Nfd2 {[%emt 0:00:02]} 35. Bb5 {[%emt 0:00:54]} Rg7 {[%emt 0:00:34]} 36. Ne6 {[%emt 0:00:02]} Nxb3 {[%emt 0:00:27]} 37. Rc2 {[%emt 0:01:17]} Rf7 {[%emt 0:00:29]} 38. Be8 {[%emt 0:00:15]} 1-0